Cogmind - Beta 14 @@@ ROGUE MODE // 2024.10.05 @ 02:11:02 Player: THN-L0C Result: Self-destructed Performance ------------- Evolutions (1) 500 Regions Visited (5) 1000 Robots Destroyed (19) 95 Value Destroyed (397) 397 Prototype IDs (24) 480 Alien Tech Used (0) 0 Bonus (420) 420 TOTAL SCORE: 2892 Bonus ------- Follower Combat Kills 120 Aligned with FarCom 300 Cogmind --------- Core Integrity 400/400 Matter 300/300 Energy 160/160 System Corruption 0% Temperature Cool (0) Movement Walking (260) Ox2 Location -9/Exiles Parts ------- > --- POWER (1) -------- Light Nuclear Core > --- PROPULSION (3) --- Improved Aluminum Leg Improved Aluminum Leg > --- UTILITY (2) ------ High-capacity Storage Unit Light Armor Plating > --- WEAPON (3) ------- Particle Cannon Assault Rifle Light Assault Rifle > --- INVENTORY (20) --- Light Ion Engine Light Nuclear Core Improved Aluminum Leg Improved Aluminum Leg High-capacity Storage Unit Huge Storage Unit High-capacity Matter Pod (200) Improved Terrain Scanner Seismic Detector Light Armor Plating Light Armor Plating Mining Laser Peak State ------------ > --- POWER ------------ Light Nuclear Core > --- PROPULSION ------- Improved Aluminum Leg Improved Aluminum Leg > --- UTILITY ---------- High-capacity Storage Unit Light Armor Plating > --- WEAPON ----------- Particle Cannon Assault Rifle Light Assault Rifle > --- INVENTORY -------- Light Ion Engine Light Nuclear Core Improved Aluminum Leg Improved Aluminum Leg High-capacity Storage Unit Huge Storage Unit High-capacity Matter Pod Improved Terrain Scanner Seismic Detector Light Armor Plating Light Armor Plating Mining Laser [Rating: 14] Favorites ----------- Power Light Ion Engine Engine Light Ion Engine Power Core Light Nuclear Core Propulsion Improved Aluminum Leg Treads Light Treads Leg Improved Aluminum Leg Utility Light Armor Plating Device Seismic Detector Storage High-capacity Storage Unit Protection Light Armor Plating Weapon Assault Rifle Energy Gun Improved EM Shotgun Energy Cannon Particle Cannon Ballistic Gun Assault Rifle Launcher EMP Blaster Special Weapon Mining Laser Build | -11 -10 -10 -9 -9 -9 ------- Run | Yrd Mat Min Mat Min Exi Slots Evolved 2 | . . . 2 . . Power . | . . . . . . Propulsion 1 | . . . 1 . . Utility . | . . . . . . Weapon 1 | . . . 1 . . Parts Attached 22 | 7 9 5 1 . . Power 3 | 1 . 2 . . . Engine 1 | 1 . . . . . Core 2 | . . 2 . . . Reactor . | . . . . . . Propulsion 4 | 2 2 . . . . Treads 2 | 2 . . . . . Leg 2 | . 2 . . . . Wheel . | . . . . . . Hover . | . . . . . . Flight . | . . . . . . Utility 6 | 2 3 1 . . . Device 1 | 1 . . . . . Storage 3 | 1 2 . . . . Processor . | . . . . . . Hackware . | . . . . . . Protection 2 | . 1 1 . . . Artifact . | . . . . . . Weapon 9 | 2 4 2 1 . . Energy Gun 2 | . 2 . . . . Energy Cannon 1 | . . . 1 . . Ballistic Gun 4 | 2 . 2 . . . Ballistic Cannon . | . . . . . . Launcher 1 | . 1 . . . . Special Weapon 1 | . 1 . . . . Impact Weapon . | . . . . . . Slashing Weapon . | . . . . . . Piercing Weapon . | . . . . . . Special Melee Weapon . | . . . . . . Unidentified Prototypes 1 | . 1 . . . . Parts Lost 3 | . 2 1 . . . Power . | . . . . . . Propulsion . | . . . . . . Utility 1 | . 1 . . . . Weapon 2 | . 1 1 . . . Highest Loss Streak 2 | . 2 1 . . . To Critical Strikes . | . . . . . . Average Slot Usage (%) 94 | . 97 96 83 88 88 Engine 8 | . 14 7 . . . Core 4 | . . 6 11 11 11 Treads 1 | . 4 . . . . Leg 25 | . 23 28 22 22 22 Device 2 | . 6 . . . . Storage 13 | . 14 14 11 11 11 Protection 9 | . 6 11 11 11 11 Energy Gun 1 | . 4 . . . . Energy Cannon 2 | . . . 6 11 11 Ballistic Gun 22 | . 18 25 22 22 22 Launcher 1 | . 3 1 . . . Peak Build Rating 14 | 7 13 12 14 14 14 Average Rating 11 | 5 10 10 13 14 14 On Entrance 9 | . 7 9 12 14 14 Naked Turns . | . . . . . . Heaviest Build 93 | 12 93 51 55 55 55 Greatest Support 40 | 40 40 26 26 26 26 Greatest Overweight (x) 3 | . 3 1 2 2 2 Average Overweight (x) 1 | . 1 1 1 2 2 Largest Inventory Capacity 25 | 8 25 20 20 20 20 Average Capacity 19 | 7 19 20 20 20 20 Most Carried 12 | 2 11 12 12 12 12 Average Carried 9 | 1 8 10 12 12 12 Final Capacity 20 | 8 20 20 20 20 20 Final Carried 12 | 2 11 12 12 12 12 Class Distribution -------------------- 79% | Mutant 20% | Tank Dominant Class ---------------- Mutant | -10/Materials Mutant | -10/Mines Tank | -9/Materials Tank | -9/Mines Tank | -9/Exiles Resources | -11 -10 -10 -9 -9 -9 ----------- Run | Yrd Mat Min Mat Min Exi Matter Collected 769 | 247 276 236 . 10 . Remotely . | . . . . . . Salvage Created 509 | 71 340 98 . . . Parts 45 | 14 26 5 . . . Haulers Intercepted . | . . . . . . Recyclers Shooed . | . . . . . . Parts Field Recycled . | . . . . . . Retrieved Matter . | . . . . . . Parts Self-Destructed . | . . . . . . Prevented . | . . . . . . Kills | -11 -10 -10 -9 -9 -9 ------- Run | Yrd Mat Min Mat Min Exi Combat Hostiles Destroyed 14 | . 9 5 . . . Guns 7 | . 5 2 . . . AOE 7 | . 4 3 . . . Classes Destroyed 7 | 2 3 2 . . . Worker 1 | 1 . . . . . Builder 1 | . 1 . . . . Tunneler 4 | 4 . . . . . Swarmer 6 | . 3 3 . . . Grunt 6 | . 6 . . . . Demolisher 1 | . . 1 . . . Assembled 1 | . . 1 . . . Best Kill Streak 3 | 3 3 3 . . . Combat Bots Only 3 | . 2 3 . . . Max Kills in Single Turn 2 | 1 1 2 . . . Gunslinging . | . . . . . . Exploded 2 | . 1 2 . . . Melee . | . . . . . . Uniques/NPCs Destroyed . | . . . . . . Combat | -11 -10 -10 -9 -9 -9 -------- Run | Yrd Mat Min Mat Min Exi Hostile Shots Fired 60 | . 54 6 . . . Missed 18 | . 16 2 . . . Damage Taken 790 | . 668 122 . . . Core 164 | . 122 42 . . . Absorbed by Shields . | . . . . . . Core Remaining (%) 67 | 100 . 34 . . . Volleys Fired 51 | 9 32 10 . . . Largest 2 | 2 2 2 . . . Hottest 100 | 40 100 53 . . . Shots Fired 80 | 18 49 13 . . . Gun 62 | 18 35 9 . . . Cannon . | . . . . . . Launcher 15 | . 11 4 . . . Special 3 | . 3 . . . . Kinetic 55 | 18 28 9 . . . Thermal 3 | . 3 . . . . Explosive . | . . . . . . Electromagnetic 22 | . 18 4 . . . Robot Hit Streak 7 | 5 7 6 . . . Robot Miss Streak 4 | 1 2 4 . . . Penetration Max . | . . . . . . Secondary Targets 1 | . . 1 . . . Max Gunslinging Chain 1 | . . 1 . . . Shots Hit Robots 47 | 10 30 7 . . . Core Hits 33 | 5 18 9 . 1 . Critical Kills . | . . . . . . Critical Parts Destroyed . | . . . . . . Critical Strikes . | . . . . . . Melee Attacks . | . . . . . . Impact . | . . . . . . Slashing . | . . . . . . Piercing . | . . . . . . Sneak Attacks . | . . . . . . Combat Hostiles . | . . . . . . Follow-up Attacks . | . . . . . . Damage Inflicted 969 | 107 713 144 . 5 . Guns 450 | 107 290 53 . . . Cannons . | . . . . . . Explosions 493 | . 423 70 . . . Melee . | . . . . . . Ramming 26 | . . 21 . 5 . Kinetic 374 | 107 214 53 . . . Thermal 23 | . 23 . . . . Explosive . | . . . . . . Electromagnetic 546 | . 476 70 . . . Impact . | . . . . . . Slashing . | . . . . . . Piercing . | . . . . . . Highest Corruption . | . . . . . . Average Corruption . | . . . . . . Corruption Purged . | . . . . . . Corruption Blocked . | . . . . . . Overload Shots . | . . . . . . Overflow Damage 57 | . 46 11 . . . Projectiles . | . . . . . . Explosions 57 | . 46 11 . . . Melee . | . . . . . . Knockbacks . | . . . . . . Impact . | . . . . . . Kinetic . | . . . . . . Secondary . | . . . . . . Self-Inflicted Damage 277 | . 247 30 . . . Shots 9 | . 5 4 . . . Rammed . | . . . . . . Targets Rammed 7 | 1 . 4 . 2 . Kicked 6 | . . 4 . 2 . Crushed 1 | 1 . . . . . Highest Temperature 75 | . 75 24 . . . Average Temperature 23 | . 24 10 . . . Received Heat Transfer 195 | . 195 . . . . Siege Activations . | . . . . . . Robots Corrupted . | . . . . . . Combat Hostiles . | . . . . . . Parts Fried 1 | . 1 . . . . Impact Corruptions . | . . . . . . Robots Melted . | . . . . . . Combat Hostiles . | . . . . . . Parts Melted . | . . . . . . Heat Transferred . | . . . . . . Parts Sabotaged . | . . . . . . Parts Stolen . | . . . . . . Parts Stripped . | . . . . . . Power Chain Reactions 2 | . 1 1 . . . Alert | -11 -10 -10 -9 -9 -9 ------- Run | Yrd Mat Min Mat Min Exi Peak Influence 195 | 20 195 108 21 7 . Initial 31 | . 16 31 21 7 . Average 45 | 8 51 55 21 7 . Maximum Alert Level . | . . . . . . Low Security (%) 100 | 100 100 100 100 100 . Level 1 . | . . . . . . Level 2 . | . . . . . . Level 3 . | . . . . . . Level 4 . | . . . . . . Level 5 . | . . . . . . High Security . | . . . . . . Max Security . | . . . . . . Squads Dispatched 2 | . 2 . . . . Investigation 1 | . 1 . . . . Extermination . | . . . . . . Reinforcement 1 | . 1 . . . . Assault . | . . . . . . Garrison . | . . . . . . Intercept . | . . . . . . Searches Triggered . | . . . . . . Construction Impeded . | . . . . . . Haulers Reinforced . | . . . . . . Active Scanning Responses . | . . . . . . Cargo Convoy Interrupts . | . . . . . . Stealth | -11 -10 -10 -9 -9 -9 --------- Run | Yrd Mat Min Mat Min Exi Distress Signals 4 | . 4 . . . . Communications Jammed . | . . . . . . Distress Signals . | . . . . . . Times Spotted 32 | . 23 9 . . . Peak Tracking Total 3 | . 3 2 . . . Tactical Retreats 2 | . 2 . . . . Traps | -11 -10 -10 -9 -9 -9 ------- Run | Yrd Mat Min Mat Min Exi Traps Triggered 1 | . 1 . . . . Indirectly . | . . . . . . Trap Hack Attempts . | . . . . . . Triggered . | . . . . . . Disarmed . | . . . . . . Reprogrammed . | . . . . . . Reused . | . . . . . . Traps Extracted . | . . . . . . Installed . | . . . . . . Triggered . | . . . . . . Machines | -11 -10 -10 -9 -9 -9 ---------- Run | Yrd Mat Min Mat Min Exi Machines Disabled 2 | . 2 . . . . Max in Single Turn 2 | . 2 . . . . Machines Repaired . | . . . . . . Machines Dismantled . | . . . . . . Machines Sabotaged . | . . . . . . Overloaded Fab Kills . | . . . . . . Hacking | -11 -10 -10 -9 -9 -9 --------- Run | Yrd Mat Min Mat Min Exi Machines Accessed 8 | . 7 . . . 1 Terminals 7 | . 7 . . . . Fabricators . | . . . . . . Repair Stations . | . . . . . . Recycling Units . | . . . . . . Scanalyzers . | . . . . . . Garrison Access . | . . . . . . Total Hacks 23 | . 22 . . . 1 Successful 14 | . 13 . . . 1 Failed 9 | . 9 . . . . Catastrophic . | . . . . . . Database Lockouts . | . . . . . . Manual 21 | . 20 . . . 1 Terminals 22 | . 22 . . . . Fabricators . | . . . . . . Repair Stations . | . . . . . . Recycling Units . | . . . . . . Scanalyzers . | . . . . . . Garrison Access . | . . . . . . Terminal Hacks 3 | . 2 . . . 1 Robot Analysis 1 | . 1 . . . . Unreport Threat 1 | . 1 . . . . Derelict Proto ID Bank 1 | . . . . . 1 Fabricator Hacks . | . . . . . . Repair Station Hacks . | . . . . . . Recycling Unit Hacks . | . . . . . . Scanalyzer . | . . . . . . Garrison Access Hacks . | . . . . . . Unauthorized Hacks 11 | . 11 . . . . Terminals 11 | . 11 . . . . Assimilate 3 | . 3 . . . . Botnet 2 | . 2 . . . . Operators 1 | . 1 . . . . Skim 5 | . 5 . . . . Fabricators . | . . . . . . Repair Stations . | . . . . . . Recycling Units . | . . . . . . Scanalyzers . | . . . . . . Garrison Access . | . . . . . . Data Cores Recovered . | . . . . . . Used . | . . . . . . Hacking Detections 7 | . 7 . . . . Full Trace Events . | . . . . . . Feedback Events . | . . . . . . Feedback Blocked . | . . . . . . Robot Schematics Acquired . | . . . . . . Robots Built . | . . . . . . Authchips . | . . . . . . Time . | . . . . . . Total Robot Build Rating . | . . . . . . Part Schematics Acquired . | . . . . . . Parts Built . | . . . . . . Authchips . | . . . . . . Time . | . . . . . . Total Part Build Rating . | . . . . . . Parts Repaired . | . . . . . . Time . | . . . . . . Parts Recycled . | . . . . . . Recycled Matter . | . . . . . . Retrieved Matter . | . . . . . . Retrieved Components . | . . . . . . Parts Scanalyzed . | . . . . . . Part Schematics Acquired . | . . . . . . Parts Damaged . | . . . . . . Bothacking | -11 -10 -10 -9 -9 -9 ------------ Run | Yrd Mat Min Mat Min Exi Used RIF Installer . | . . . . . . Robots Hacked . | . . . . . . Non-combat . | . . . . . . Combat . | . . . . . . Robot Hacks Applied . | . . . . . . Relay Couplers Released . | . . . . . . Fabnet Peak Effective % . | . . . . . . Robots Rewired . | . . . . . . Allies Hacked . | . . . . . . Hacks Repelled . | . . . . . . Allies | -11 -10 -10 -9 -9 -9 -------- Run | Yrd Mat Min Mat Min Exi Total Allies 4 | . 1 3 . . . Largest Group 3 | . 1 3 2 2 2 Highest-Rated Group 40 | . 10 40 32 32 32 Highest-Rated Ally 16 | . 10 16 16 16 16 Total Orders . | . . . . . . Ally Attacks 27 | . . 27 . . . Total Damage 291 | . . 291 . . . Kills 4 | . . 4 . . . Allies Corrupted . | . . . . . . Allies Melted . | . . . . . . Intel | -11 -10 -10 -9 -9 -9 ------- Run | Yrd Mat Min Mat Min Exi Robot Analysis Total 1 | . 1 . . . . Derelict Logs Recovered 2 | . . 2 . . . Drone Launches . | . . . . . . Drone Recoveries . | . . . . . . Exploration | -11 -10 -10 -9 -9 -9 ------------- Run | Yrd Mat Min Mat Min Exi Turns Passed 3088 | 102 1211 1124 67 300 284 Spaces Moved 1296 | 44 433 567 30 113 109 Core 8 | 8 . . . . . Treads 143 | 36 107 . . . . Legs 1145 | . 326 567 30 113 109 Wheels . | . . . . . . Hover . | . . . . . . Flight . | . . . . . . Fastest Speed 50 | 50 120 190 190 260 260 Average Speed 215 | 140 233 190 225 260 260 Slowest Speed 330 | 160 330 190 260 260 260 Overloaded Moves . | . . . . . . Propulsion Burnouts . | . . . . . . Robots Hopped . | . . . . . . Cave-ins Triggered . | . . . . . . Exploration Rate (%) 42 | 4 86 93 4 29 40 Regions Visited 5 Branch Regions 3 Pre-discovered Areas . | . . . . . . Known Exits Taken 3 | . 1 1 1 . . Unknown Exits Taken 2 | 1 . . . 1 . Scrap Searched 2 | . . 1 . 1 . Spaces Dug 9 | . 3 6 . . . Terrain Destroyed 52 | . 46 6 . . . Melee . | . . . . . . Projectile 3 | . 3 . . . . AOE 49 | . 43 6 . . . Terrain Rammed . | . . . . . . Walls Destroyed . | . . . . . . Machines Disabled . | . . . . . . Actions | -11 -10 -10 -9 -9 -9 --------- Run | Yrd Mat Min Mat Min Exi Total 1496 | 64 578 598 30 117 109 Wait 109 | 2 92 12 . 3 . Move 1292 | 44 432 566 29 112 109 Hop . | . . . . . . Pick Up 13 | 2 10 1 . . . Fast Attach 9 | 7 . 1 1 . . Attach 3 | . 1 2 . . . Detach 1 | . 1 . . . . Swap 10 | . 8 2 . . . Drop 2 | . 2 . . . . Fire 51 | 9 32 10 . . . Melee . | . . . . . . Ram . | . . . . . . Kick 6 | . . 4 . 2 . Crush . | . . . . . . Escape Stasis . | . . . . . . Rewire . | . . . . . . Trap . | . . . . . . Miscellaneous . | . . . . . . Route ------- -11/Scrapyard -10/Materials (discovered 6 exits: *Mat x3 / *Min x2 / Sub) -10/Mines (discovered 3 exits: *Mat x2 / *Sub) -9/Materials (discovered 2 exits: *Min x2) -9/Mines -9/Exiles (discovered 2 exits: *Min x2) History --------- Turn | Location | Event 5 | -11/Scrapyard | Discovered new exit (range 16) 103 | -11/Scrapyard | Entered Materials 251 | -10/Materials | Discovered new exit (range 16) 307 | -10/Materials | Build established: Mutant 786 | -10/Materials | Discovered new exit (range 9) 932 | -10/Materials | Identified exit to Mines 1005 | -10/Materials | Identified exit to Materials 1069 | -10/Materials | Learned location of 1 exit from Recycling 1164 | -10/Materials | Identified exit to Subcaves 1215 | -10/Materials | Learned 2 Storage zone layouts 1245 | -10/Materials | Learned 4 Recycling zone layouts 1286 | -10/Materials | Learned 4 Recycling zone layouts 1314 | -10/Materials | Entered Mines 1315 | -10/Mines | Assembled infested the area 1317 | -10/Mines | Core integrity fell below 50% 1624 | -10/Mines | Discovered exit to Materials (range 6) 1708 | -10/Mines | Discovered exit to Subcaves (range 9) 1752 | -10/Mines | Discovered exit to Materials (range 6) 1797 | -10/Mines | Assisted by bots powering up and referring to "LRC-V3" 1811 | -10/Mines | Learned 2 Materials zone layouts 2438 | -10/Mines | Entered Materials 2438 | -9/Materials | Accompanied by 2 allies 2438 | -9/Materials | Evolved 2 slots: Propulsion x1, Weapon x1 2439 | -9/Materials | Identified exit to Mines 2505 | -9/Materials | Entered Mines 2505 | -9/Mines | Accompanied by 2 allies 2754 | -9/Mines | Build established: Tank 2784 | -9/Mines | Deemed a non-threat by the Exiles lab entrance 2786 | -9/Mines | Discovered new exit (range 5) 2805 | -9/Mines | Entered Exiles 2805 | -9/Exiles | Accompanied by 2 allies 2806 | -9/Exiles | Identified exit to Mines 2844 | -9/Exiles | Discovered exit to Mines (range 15) 2876 | -9/Exiles | Met 8R-AWN 2912 | -9/Exiles | Met EX-HEX 2982 | -9/Exiles | Met EX-BIN 3013 | -9/Exiles | Aligned with FarCom system 3016 | -9/Exiles | Given EX-Vault access code 3078 | -9/Exiles | Opened EX-Vault 3089 | -9/Exiles | Self-destructed Last Messages --------------- Modified TNC 0b10 Alert Chip Cloak of Protection Skeleton Box Trap Reconfigurator Supersonic Drone Bay Army-in-a-Box PSU Rigger Chronowheel AWS/Thermal Latent Energy Streamer Gui. Plasma Cannon Firepult YOLO Cannon AWS/Gauss XL Autogun Array AWS/Autocannon Field Lobotomy Kit Longsword +1 Deploy-a-Sentry Map ----- +----------------------------------------------------+ | | | | | | | | | | | | | | | | | | | | | | | | | | | | | | | | | | | | | | | | | | | | | ?????????????????????####?####???????????????????? | | ?????????????????????# # #???????????????????? | | ?????????????????????#] X[ #???????????????????? | | ?????????????????????# @] #???????????????????? | | ?????????????????????# g #???????????????????? | | ?????????????????????## g ##???????????????????? | | ?????????????????????#X #????????????????????? | | ?????????????????????## #????????????????????? | | ??????????????????????# #????????????????????? | | ??????????????????????# #???#?##?????????????? | | ??????????????????????# #??"""""?????????????? | | ??????????????????????# ## """#????????????? | | ??????????????????????# X""#????????????? | | ??????????????????????# ## """#????????????? | | ????????????????####??# #??"""""?????????????? | | ????????????????"""""?# #???####?????????????? | | ????????????????""" ## #????????????????????? | | ??????????????#""X" #????????????????????? | | ??????????????#" #????????????????????? | | ??????????????#" ## #????????????????????? | | ??????????????#""""""?# #?#########??????????? | | ????????????????"###??# #?#"""""""#??????????? | | ??????????????????????# #?#"""""""#??????????? | | ??????????????????????# #?#"""""""#??????????? | | ?????????????????????## ###"" """"#??????????? | | ?????????????????????#" """"#??????????? | | ?????????????????????#" """#??????????? | | ?????????????????????#" """#??????????? | +----------------------------------------------------+ Best States ------------- Heat Dissipation 28 Energy Generation 14 Energy Capacity 160 Matter Stores 300 Matter Capacity 300 Sight Range 16 Terrain Scan Density 10 Armor Coverage 150 Evasion (%) 55 Recoil Reduction 2 Item Schematics ----------------- None Robot Schematics ------------------ None Fabricated ------------ Nothing Alien Tech Used ----------------- None Achievements -------------- None Challenges ------------ None Game ------ Seed CooledTowerThermoblaster Manual? 0 Play Time 00:11:13 Cumulative 299.2 hours Start 2024.10.05 @ 02:00:21 End 2024.10.05 @ 02:11:02 Sessions 1 Manual Loads 0 Difficulty Rogue Special Mode None Game No. 236 Rogue 236 Adventurer 0 Explorer 0 Win Type - Total 2 Types 1/0/0/1/0/0/0/0/0 Lore% 74 Gallery% 78 Achievement% 58 Wizard Run 0 Options --------- Layout 2 ASCII 0 Keyboard 1 Movement Vi Keybinds 0 Fullscreen 1 Font 32/SmallcapsGlow Map View 77x44 Zoom Use 0% Tactical HUD 1 Map Filters NONE Filters NONE Steam 1 RUN: 027f1e8e-64be-4600-9259-fdfc8d51db6f